[Event "Titled Tuesday Blitz March 29 Late 2022"]
[White "Suder, Jakub"]
[Black "Ibarra Jerez, Jose Carlos"]
[WhiteFideId "1195310"]
[BlackFideId "2226332"]
[WhiteElo "2058"]
[BlackElo "2626"]
[Result "0-1"]
[Round "02"]
[TimeControl "180+1"]
[Date "2022.03.29"]
[WhiteClock "0:00:15"]
[BlackClock "0:00:57"]

1. d4 {[%clk 0:03:00]}  Nf6 {[%clk 0:02:58]} 2. c4 {[%clk 0:03:01]}  d6 {[%clk 0:02:59]} 3. Nc3 {[%clk 0:03:01]}  e5 {[%clk 0:02:58]} 4. Nf3 {[%clk 0:03:01]}  e4 {[%clk 0:02:57]} 5. Ng5 {[%clk 0:02:59]}  Qe7 {[%clk 0:02:57]} 6. h4 {[%clk 0:02:58]}  h6 {[%clk 0:02:51]} 7. Nh3 {[%clk 0:02:58]}  g6 {[%clk 0:02:50]} 8. e3 {[%clk 0:02:54]}  c6 {[%clk 0:02:49]} 9. Be2 {[%clk 0:02:54]}  h5 {[%clk 0:02:48]} 10. b3 {[%clk 0:02:49]}  Bg7 {[%clk 0:02:42]} 11. Bb2 {[%clk 0:02:44]}  O-O {[%clk 0:02:42]} 12. Qc2 {[%clk 0:02:43]}  a6 {[%clk 0:02:41]} 13. Ng5 {[%clk 0:02:42]}  Bf5 {[%clk 0:02:40]} 14. d5 {[%clk 0:02:32]}  c5 {[%clk 0:02:36]} 15. a4 {[%clk 0:02:31]}  Nbd7 {[%clk 0:02:34]} 16. a5 {[%clk 0:02:29]}  Rfe8 {[%clk 0:02:33]} 17. Na4 {[%clk 0:02:21]}  Ne5 {[%clk 0:02:30]} 18. Bxe5 {[%clk 0:02:16]}  Qxe5 {[%clk 0:02:28]} 19. Rb1 {[%clk 0:02:11]}  Rac8 {[%clk 0:02:20]} 20. Nh3 {[%clk 0:02:02]}  Bh6 {[%clk 0:02:14]} 21. Qc3 {[%clk 0:01:53]}  Qe7 {[%clk 0:02:10]} 22. g3 {[%clk 0:01:52]}  Ng4 {[%clk 0:02:07]} 23. Nf4 {[%clk 0:01:49]}  Bg7 {[%clk 0:02:06]} 24. Qd2 {[%clk 0:01:48]}  Ne5 {[%clk 0:02:06]} 25. Nb6 {[%clk 0:01:29]}  Rc7 {[%clk 0:01:58]} 26. O-O {[%clk 0:01:26]}  Nf3+ {[%clk 0:01:56]} 27. Bxf3 {[%clk 0:01:23]}  exf3 {[%clk 0:01:57]} 28. Rbc1 {[%clk 0:01:18]}  Be4 {[%clk 0:01:56]} 29. Rfd1 {[%clk 0:01:16]}  Be5 {[%clk 0:01:53]} 30. Qe1 {[%clk 0:01:12]}  Kg7 {[%clk 0:01:53]} 31. Na4 {[%clk 0:01:10]}  Rh8 {[%clk 0:01:44]} 32. Nc3 {[%clk 0:01:07]}  Bf5 {[%clk 0:01:41]} 33. Ra1 {[%clk 0:00:42]}  g5 {[%clk 0:01:37]} 34. hxg5 {[%clk 0:00:37]}  Qxg5 {[%clk 0:01:37]} 35. e4 {[%clk 0:00:37]}  Bg4 {[%clk 0:01:23]} 36. Qe3 {[%clk 0:00:34]}  Qf6 {[%clk 0:01:23]} 37. Rac1 {[%clk 0:00:33]}  h4 {[%clk 0:01:18]} 38. Kf1 {[%clk 0:00:30]}  hxg3 {[%clk 0:01:17]} 39. fxg3 {[%clk 0:00:30]}  Bd4 {[%clk 0:01:01]} 40. Rxd4 {[%clk 0:00:15]}  cxd4 {[%clk 0:01:00]} 41. e5 {[%clk 0:00:15]}  Rh1+ {[%clk 0:00:57]} 0-1


[Site "https://www.chess.com"]

[Event "Titled Tuesday Blitz March 29 Late 2022"]
[White "Szpar, Milosz"]
[Black "Moral Garcia, Serafin"]
[WhiteFideId "1184989"]
[BlackFideId "2201925"]
[WhiteElo "2447"]
[BlackElo "2228"]
[Result "0-1"]
[Round "02"]
[TimeControl "180+1"]
[Date "2022.03.30"]
[WhiteClock "0:00:04"]
[BlackClock "0:00:19"]

1. e4 {[%clk 0:03:00]}  e5 {[%clk 0:02:57]} 2. Nf3 {[%clk 0:03:00]}  Nc6 {[%clk 0:02:57]} 3. Bc4 {[%clk 0:03:00]}  Bc5 {[%clk 0:02:56]} 4. c3 {[%clk 0:02:59]}  Nf6 {[%clk 0:02:56]} 5. d4 {[%clk 0:02:59]}  exd4 {[%clk 0:02:56]} 6. cxd4 {[%clk 0:02:59]}  Bb4+ {[%clk 0:02:57]} 7. Nbd2 {[%clk 0:02:54]}  d5 {[%clk 0:02:51]} 8. exd5 {[%clk 0:02:53]}  Nxd5 {[%clk 0:02:51]} 9. O-O {[%clk 0:02:53]}  O-O {[%clk 0:02:51]} 10. a3 {[%clk 0:02:52]}  Be7 {[%clk 0:02:48]} 11. h3 {[%clk 0:02:46]}  Nb6 {[%clk 0:02:47]} 12. Bd3 {[%clk 0:02:27]}  Nxd4 {[%clk 0:02:45]} 13. Nxd4 {[%clk 0:02:27]}  Qxd4 {[%clk 0:02:46]} 14. Nf3 {[%clk 0:02:28]}  Qd5 {[%clk 0:02:38]} 15. Qc2 {[%clk 0:02:25]}  h6 {[%clk 0:02:32]} 16. Be3 {[%clk 0:02:22]}  c6 {[%clk 0:02:28]} 17. Rad1 {[%clk 0:02:21]}  Qh5 {[%clk 0:02:27]} 18. Be4 {[%clk 0:02:15]}  Be6 {[%clk 0:02:24]} 19. Rfe1 {[%clk 0:02:11]}  Rfd8 {[%clk 0:02:22]} 20. Bd4 {[%clk 0:02:09]}  Bf8 {[%clk 0:02:16]} 21. b4 {[%clk 0:02:08]}  Bd5 {[%clk 0:02:12]} 22. Bh7+ {[%clk 0:01:51]}  Kh8 {[%clk 0:02:11]} 23. Ne5 {[%clk 0:01:51]}  Nd7 {[%clk 0:01:59]} 24. Nd3 {[%clk 0:01:44]}  Qg5 {[%clk 0:01:53]} 25. Be4 {[%clk 0:01:38]}  Bxe4 {[%clk 0:01:52]} 26. Rxe4 {[%clk 0:01:39]}  Nf6 {[%clk 0:01:49]} 27. Rf4 {[%clk 0:01:32]}  Nh5 {[%clk 0:01:34]} 28. Rg4 {[%clk 0:01:30]}  Qf5 {[%clk 0:01:31]} 29. Qc3 {[%clk 0:01:19]}  Rd5 {[%clk 0:01:16]} 30. Ne5 {[%clk 0:01:14]}  Rad8 {[%clk 0:01:09]} 31. Re1 {[%clk 0:01:10]}  Nf4 {[%clk 0:00:56]} 32. Bxa7 {[%clk 0:00:56]}  Rd1 {[%clk 0:00:34]} 33. Kh2 {[%clk 0:00:53]}  Rxe1 {[%clk 0:00:33]} 34. Qxe1 {[%clk 0:00:53]}  Kh7 {[%clk 0:00:32]} 35. Nf3 {[%clk 0:00:38]}  Bd6 {[%clk 0:00:29]} 36. Kh1 {[%clk 0:00:37]}  Nxh3 {[%clk 0:00:29]} 37. Rd4 {[%clk 0:00:24]}  Nf4 {[%clk 0:00:25]} 38. Qe4 {[%clk 0:00:15]}  Qxe4 {[%clk 0:00:23]} 39. Rxe4 {[%clk 0:00:16]}  Bc7 {[%clk 0:00:20]} 40. Re7 {[%clk 0:00:14]}  Nd5 {[%clk 0:00:20]} 41. Rxf7 {[%clk 0:00:12]}  Kg6 {[%clk 0:00:18]} 42. Rxc7 {[%clk 0:00:06]}  Nxc7 {[%clk 0:00:18]} 43. Bb6 {[%clk 0:00:06]}  Rd1+ {[%clk 0:00:18]} 44. Kh2 {[%clk 0:00:06]}  Nd5 {[%clk 0:00:18]} 45. Bd4 {[%clk 0:00:04]}  Rd3 {[%clk 0:00:18]} 46. Bc5 {[%clk 0:00:02]}  Rxa3 {[%clk 0:00:18]} 47. b5 {[%clk 0:00:02]}  Rxf3 {[%clk 0:00:18]} 48. gxf3 {[%clk 0:00:02]}  cxb5 {[%clk 0:00:18]} 49. Kg3 {[%clk 0:00:02]}  Kf5 {[%clk 0:00:19]} 50. Bf8 {[%clk 0:00:02]}  Kf6 {[%clk 0:00:18]} 51. Bc5 {[%clk 0:00:01]}  b4 {[%clk 0:00:19]} 52. Bd4+ {[%clk 0:00:02]}  Kg6 {[%clk 0:00:18]} 53. f4 {[%clk 0:00:02]}  b3 {[%clk 0:00:19]} 54. Kf3 {[%clk 0:00:02]}  Nb4 {[%clk 0:00:18]} 55. Bb2 {[%clk 0:00:03]}  Nd3 {[%clk 0:00:18]} 56. Bc3 {[%clk 0:00:04]}  b2 {[%clk 0:00:19]} 0-1


[Site "https://www.chess.com"]

[Event "Titled Tuesday Blitz March 29 Late 2022"]
[White "Terrieux, Kevin"]
[Black "Naroditsky, Daniel"]
[WhiteFideId "622591"]
[BlackFideId "2026961"]
[WhiteElo "2482"]
[BlackElo "2608"]
[Result "0-1"]
[Round "02"]
[TimeControl "180+1"]
[Date "2022.03.29"]
[WhiteClock "0:00:04"]
[BlackClock "0:00:42"]

1. d4 {[%clk 0:02:57]}  Nf6 {[%clk 0:03:00]} 2. f3 {[%clk 0:02:57]}  d5 {[%clk 0:02:57]} 3. e4 {[%clk 0:02:45]}  dxe4 {[%clk 0:02:57]} 4. Nc3 {[%clk 0:02:45]}  exf3 {[%clk 0:02:45]} 5. Nxf3 {[%clk 0:02:46]}  Bf5 {[%clk 0:02:44]} 6. Ne5 {[%clk 0:02:44]}  e6 {[%clk 0:02:41]} 7. g4 {[%clk 0:02:41]}  Be4 {[%clk 0:02:34]} 8. Rg1 {[%clk 0:02:29]}  Bd5 {[%clk 0:02:11]} 9. g5 {[%clk 0:02:01]}  Nfd7 {[%clk 0:02:11]} 10. Nxd5 {[%clk 0:01:30]}  Nxe5 {[%clk 0:02:05]} 11. Nf4 {[%clk 0:01:18]}  Qxd4 {[%clk 0:02:00]} 12. Qxd4 {[%clk 0:01:02]}  Nf3+ {[%clk 0:02:00]} 13. Kd1 {[%clk 0:00:52]}  Nxd4 {[%clk 0:02:01]} 14. c3 {[%clk 0:00:52]}  Nf5 {[%clk 0:01:52]} 15. Bb5+ {[%clk 0:00:47]}  Nc6 {[%clk 0:01:46]} 16. Kc2 {[%clk 0:00:44]}  O-O-O {[%clk 0:01:45]} 17. Bxc6 {[%clk 0:00:40]}  bxc6 {[%clk 0:01:46]} 18. Nd3 {[%clk 0:00:39]}  Bd6 {[%clk 0:01:46]} 19. h3 {[%clk 0:00:34]}  e5 {[%clk 0:01:40]} 20. Rf1 {[%clk 0:00:26]}  g6 {[%clk 0:01:40]} 21. Nf2 {[%clk 0:00:25]}  Be7 {[%clk 0:01:17]} 22. Ne4 {[%clk 0:00:24]}  Rd5 {[%clk 0:01:18]} 23. Bd2 {[%clk 0:00:22]}  Rhd8 {[%clk 0:01:18]} 24. Rae1 {[%clk 0:00:21]}  Kb7 {[%clk 0:01:10]} 25. Rf3 {[%clk 0:00:20]}  c5 {[%clk 0:00:55]} 26. b3 {[%clk 0:00:19]}  c4 {[%clk 0:00:55]} 27. bxc4 {[%clk 0:00:17]}  Ra5 {[%clk 0:00:55]} 28. Kb3 {[%clk 0:00:16]}  Kc6 {[%clk 0:00:55]} 29. Ref1 {[%clk 0:00:12]}  Rb8+ {[%clk 0:00:51]} 30. Kc2 {[%clk 0:00:12]}  Rxa2+ {[%clk 0:00:52]} 31. Kd3 {[%clk 0:00:12]}  Rd8+ {[%clk 0:00:52]} 32. Ke2 {[%clk 0:00:12]}  Bxg5 {[%clk 0:00:51]} 33. Nxg5 {[%clk 0:00:04]}  Rdxd2+ {[%clk 0:00:42]} 0-1


[Site "https://www.chess.com"]

[Event "Titled Tuesday Blitz March 29 Late 2022"]
[White "Tiarks, Jann-Christian"]
[Black "Kadric, Denis"]
[WhiteFideId "12951595"]
[BlackFideId "14403803"]
[WhiteElo "2176"]
[BlackElo "2657"]
[Result "0-1"]
[Round "02"]
[TimeControl "180+1"]
[Date "2022.03.30"]
[WhiteClock "0:00:46"]
[BlackClock "0:01:08"]

1. e4 {[%clk 0:03:00]}  d6 {[%clk 0:02:58]} 2. d4 {[%clk 0:02:58]}  g6 {[%clk 0:02:59]} 3. Nc3 {[%clk 0:02:58]}  a6 {[%clk 0:02:59]} 4. a4 {[%clk 0:02:57]}  Bg7 {[%clk 0:02:58]} 5. Bg5 {[%clk 0:02:57]}  b6 {[%clk 0:02:56]} 6. f4 {[%clk 0:02:56]}  Nd7 {[%clk 0:02:56]} 7. Qd2 {[%clk 0:02:54]}  Bb7 {[%clk 0:02:55]} 8. Nf3 {[%clk 0:02:54]}  c5 {[%clk 0:02:52]} 9. O-O-O {[%clk 0:02:52]}  cxd4 {[%clk 0:02:52]} 10. Nxd4 {[%clk 0:02:51]}  Rc8 {[%clk 0:02:48]} 11. Be2 {[%clk 0:02:38]}  Ngf6 {[%clk 0:02:14]} 12. Bf3 {[%clk 0:02:36]}  Rc7 {[%clk 0:02:11]} 13. Rhe1 {[%clk 0:02:30]}  e5 {[%clk 0:02:06]} 14. Ndb5 {[%clk 0:02:23]}  axb5 {[%clk 0:02:05]} 15. Nxb5 {[%clk 0:02:23]}  O-O {[%clk 0:02:05]} 16. Qxd6 {[%clk 0:02:17]}  Rc6 {[%clk 0:02:03]} 17. Bxf6 {[%clk 0:01:46]}  Rxd6 {[%clk 0:02:03]} 18. Rxd6 {[%clk 0:01:44]}  Bxf6 {[%clk 0:01:59]} 19. Red1 {[%clk 0:01:42]}  Bc8 {[%clk 0:01:44]} 20. Bg4 {[%clk 0:01:41]}  Be7 {[%clk 0:01:44]} 21. R6d5 {[%clk 0:01:37]}  f5 {[%clk 0:01:42]} 22. exf5 {[%clk 0:01:34]}  gxf5 {[%clk 0:01:42]} 23. Bh5 {[%clk 0:01:30]}  exf4 {[%clk 0:01:39]} 24. Nd4 {[%clk 0:01:23]}  Rf6 {[%clk 0:01:35]} 25. Bf3 {[%clk 0:01:10]}  Qc7 {[%clk 0:01:34]} 26. Nxf5 {[%clk 0:01:05]}  Nf8 {[%clk 0:01:28]} 27. Nxe7+ {[%clk 0:00:59]}  Qxe7 {[%clk 0:01:29]} 28. Rd8 {[%clk 0:00:59]}  Bf5 {[%clk 0:01:24]} 29. Ra8 {[%clk 0:00:53]}  Qc5 {[%clk 0:01:19]} 30. c3 {[%clk 0:00:49]}  Rd6 {[%clk 0:01:13]} 31. Re1 {[%clk 0:00:46]}  Qf2 {[%clk 0:01:08]} 0-1


[Site "https://www.chess.com"]

[Event "Titled Tuesday Blitz March 29 Late 2022"]
[White "Vasquez Schroeder, Rodrigo"]
[Black "Chiu, Isaac"]
[WhiteFideId "3400042"]
[BlackFideId "30900654"]
[WhiteElo "2561"]
[BlackElo "2117"]
[Result "1-0"]
[Round "02"]
[TimeControl "180+1"]
[Date "2022.03.29"]
[WhiteClock "0:01:56"]
[BlackClock "0:01:50"]

1. e4 {[%clk 0:03:00]}  e5 {[%clk 0:02:57]} 2. Nf3 {[%clk 0:03:01]}  Nc6 {[%clk 0:02:57]} 3. Bb5 {[%clk 0:03:01]}  a6 {[%clk 0:02:57]} 4. Ba4 {[%clk 0:03:02]}  Nf6 {[%clk 0:02:57]} 5. O-O {[%clk 0:03:02]}  Be7 {[%clk 0:02:57]} 6. Re1 {[%clk 0:03:03]}  b5 {[%clk 0:02:57]} 7. Bb3 {[%clk 0:03:03]}  d6 {[%clk 0:02:57]} 8. c3 {[%clk 0:03:02]}  O-O {[%clk 0:02:57]} 9. h3 {[%clk 0:03:03]}  Nb8 {[%clk 0:02:54]} 10. d4 {[%clk 0:03:02]}  Nbd7 {[%clk 0:02:55]} 11. Nbd2 {[%clk 0:03:03]}  Bb7 {[%clk 0:02:55]} 12. Bc2 {[%clk 0:03:03]}  Re8 {[%clk 0:02:55]} 13. a4 {[%clk 0:03:03]}  c6 {[%clk 0:02:53]} 14. Bd3 {[%clk 0:03:04]}  Bf8 {[%clk 0:02:53]} 15. b3 {[%clk 0:03:04]}  g6 {[%clk 0:02:51]} 16. Bb2 {[%clk 0:03:03]}  Qc7 {[%clk 0:02:50]} 17. Qc2 {[%clk 0:03:04]}  Nb6 {[%clk 0:02:40]} 18. Bf1 {[%clk 0:02:55]}  Bg7 {[%clk 0:02:30]} 19. dxe5 {[%clk 0:02:47]}  dxe5 {[%clk 0:02:30]} 20. c4 {[%clk 0:02:47]}  bxa4 {[%clk 0:02:15]} 21. c5 {[%clk 0:02:45]}  Nbd7 {[%clk 0:02:14]} 22. Rxa4 {[%clk 0:02:44]}  Bf8 {[%clk 0:02:12]} 23. Ba3 {[%clk 0:02:30]}  a5 {[%clk 0:02:10]} 24. Qc3 {[%clk 0:02:27]}  Ba6 {[%clk 0:02:09]} 25. Bxa6 {[%clk 0:02:20]}  Rxa6 {[%clk 0:02:09]} 26. Ra1 {[%clk 0:02:19]}  Rb8 {[%clk 0:02:04]} 27. Ne1 {[%clk 0:02:12]}  Rb5 {[%clk 0:02:02]} 28. Nd3 {[%clk 0:02:12]}  Ra8 {[%clk 0:01:55]} 29. Rc1 {[%clk 0:02:04]}  Bh6 {[%clk 0:01:51]} 30. Rc2 {[%clk 0:01:57]}  Bxd2 {[%clk 0:01:49]} 31. Rxd2 {[%clk 0:01:56]}  Nxe4 {[%clk 0:01:50]} 32. Rxe4 {[%clk 0:01:56]} 1-0


[Site "https://www.chess.com"]

[Event "Titled Tuesday Blitz March 29 Late 2022"]
[White "Xiong, Jeffery"]
[Black "Diaz Perez, Michel Alejandro"]
[WhiteFideId "2047640"]
[BlackFideId "3517179"]
[WhiteElo "2727"]
[BlackElo "2337"]
[Result "1-0"]
[Round "02"]
[TimeControl "180+1"]
[Date "2022.03.29"]
[WhiteClock "0:00:03"]
[BlackClock "0:00:02"]

1. d4 {[%clk 0:03:00]}  Nf6 {[%clk 0:02:56]} 2. Nf3 {[%clk 0:03:01]}  e6 {[%clk 0:02:57]} 3. Bf4 {[%clk 0:03:01]}  c5 {[%clk 0:02:55]} 4. e3 {[%clk 0:03:01]}  b6 {[%clk 0:02:55]} 5. Nc3 {[%clk 0:03:00]}  cxd4 {[%clk 0:02:54]} 6. Nb5 {[%clk 0:02:50]}  d6 {[%clk 0:02:42]} 7. Qxd4 {[%clk 0:02:47]}  Nd5 {[%clk 0:02:41]} 8. Bg5 {[%clk 0:02:23]}  f6 {[%clk 0:02:34]} 9. e4 {[%clk 0:02:11]}  Nc7 {[%clk 0:01:51]} 10. Be3 {[%clk 0:02:11]}  Nxb5 {[%clk 0:01:47]} 11. Bxb5+ {[%clk 0:02:12]}  Bd7 {[%clk 0:01:47]} 12. a4 {[%clk 0:02:05]}  Be7 {[%clk 0:01:45]} 13. O-O {[%clk 0:02:03]}  O-O {[%clk 0:01:43]} 14. Rfd1 {[%clk 0:02:03]}  Nc6 {[%clk 0:01:42]} 15. Qd2 {[%clk 0:01:56]}  Qe8 {[%clk 0:01:37]} 16. Qe2 {[%clk 0:01:42]}  Rd8 {[%clk 0:01:36]} 17. Nd2 {[%clk 0:01:37]}  Qg6 {[%clk 0:01:24]} 18. f3 {[%clk 0:01:33]}  Ne5 {[%clk 0:01:21]} 19. Nc4 {[%clk 0:01:28]}  Bc8 {[%clk 0:01:13]} 20. a5 {[%clk 0:01:24]}  bxa5 {[%clk 0:00:46]} 21. Rxa5 {[%clk 0:01:23]}  d5 {[%clk 0:00:46]} 22. Nxe5 {[%clk 0:01:17]}  fxe5 {[%clk 0:00:47]} 23. Rxa7 {[%clk 0:01:17]}  Bf6 {[%clk 0:00:47]} 24. Bd3 {[%clk 0:01:16]}  d4 {[%clk 0:00:46]} 25. Bf2 {[%clk 0:01:16]}  Rf7 {[%clk 0:00:43]} 26. Rda1 {[%clk 0:01:16]}  Bg5 {[%clk 0:00:42]} 27. Bg3 {[%clk 0:01:07]}  Be3+ {[%clk 0:00:38]} 28. Kh1 {[%clk 0:01:07]}  Rxa7 {[%clk 0:00:35]} 29. Rxa7 {[%clk 0:01:06]}  Qf6 {[%clk 0:00:36]} 30. Ra5 {[%clk 0:01:05]}  Bf4 {[%clk 0:00:35]} 31. Qe1 {[%clk 0:01:03]}  Bd7 {[%clk 0:00:32]} 32. Bxf4 {[%clk 0:00:59]}  Qxf4 {[%clk 0:00:31]} 33. b4 {[%clk 0:00:52]}  Rb8 {[%clk 0:00:30]} 34. Ra7 {[%clk 0:00:50]}  Be8 {[%clk 0:00:23]} 35. Ra1 {[%clk 0:00:37]}  h5 {[%clk 0:00:23]} 36. Rb1 {[%clk 0:00:30]}  h4 {[%clk 0:00:20]} 37. b5 {[%clk 0:00:30]}  h3 {[%clk 0:00:19]} 38. Qg3 {[%clk 0:00:30]}  hxg2+ {[%clk 0:00:20]} 39. Kxg2 {[%clk 0:00:30]}  Qd2+ {[%clk 0:00:20]} 40. Kh1 {[%clk 0:00:30]}  Bh5 {[%clk 0:00:19]} 41. b6 {[%clk 0:00:16]}  Qe3 {[%clk 0:00:17]} 42. Kg2 {[%clk 0:00:15]}  Qd2+ {[%clk 0:00:17]} 43. Kh1 {[%clk 0:00:09]}  Qe3 {[%clk 0:00:17]} 44. Kg2 {[%clk 0:00:10]}  Qd2+ {[%clk 0:00:10]} 45. Qf2 {[%clk 0:00:10]}  Bxf3+ {[%clk 0:00:08]} 46. Kf1 {[%clk 0:00:08]}  Qf4 {[%clk 0:00:06]} 47. b7 {[%clk 0:00:08]}  g5 {[%clk 0:00:06]} 48. Qg3 {[%clk 0:00:07]}  g4 {[%clk 0:00:06]} 49. Qxf4 {[%clk 0:00:04]}  exf4 {[%clk 0:00:07]} 50. Rb5 {[%clk 0:00:02]}  Kf7 {[%clk 0:00:06]} 51. Kf2 {[%clk 0:00:03]}  Ke7 {[%clk 0:00:06]} 52. h3 {[%clk 0:00:03]}  Kd6 {[%clk 0:00:05]} 53. hxg4 {[%clk 0:00:03]}  Bxg4 {[%clk 0:00:06]} 54. e5+ {[%clk 0:00:03]}  Kc6 {[%clk 0:00:05]} 55. Rb4 {[%clk 0:00:04]}  Bf5 {[%clk 0:00:05]} 56. Rc4+ {[%clk 0:00:02]}  Kd5 {[%clk 0:00:05]} 57. Rb4 {[%clk 0:00:02]}  Bxd3 {[%clk 0:00:04]} 58. cxd3 {[%clk 0:00:03]}  Kxe5 {[%clk 0:00:05]} 59. Kf3 {[%clk 0:00:04]}  Kf5 {[%clk 0:00:05]} 60. Rb5+ {[%clk 0:00:04]}  e5 {[%clk 0:00:05]} 61. Rb6 {[%clk 0:00:05]}  Kg5 {[%clk 0:00:04]} 62. Ke4 {[%clk 0:00:05]}  Kg4 {[%clk 0:00:05]} 63. Rg6+ {[%clk 0:00:06]}  Kh5 {[%clk 0:00:05]} 64. Rg7 {[%clk 0:00:07]}  Kh6 {[%clk 0:00:04]} 65. Rc7 {[%clk 0:00:07]}  Kg5 {[%clk 0:00:04]} 66. Kxe5 {[%clk 0:00:07]}  f3 {[%clk 0:00:04]} 67. Rg7+ {[%clk 0:00:08]}  Kh6 {[%clk 0:00:04]} 68. Rf7 {[%clk 0:00:08]}  f2 {[%clk 0:00:05]} 69. Kxd4 {[%clk 0:00:07]}  Rxb7 {[%clk 0:00:06]} 70. Rxf2 {[%clk 0:00:07]}  Kg6 {[%clk 0:00:06]} 71. Kc5 {[%clk 0:00:06]}  Rc7+ {[%clk 0:00:06]} 72. Kd6 {[%clk 0:00:06]}  Rc8 {[%clk 0:00:06]} 73. d4 {[%clk 0:00:03]}  Rd8+ {[%clk 0:00:05]} 74. Kc5 {[%clk 0:00:04]}  Rc8+ {[%clk 0:00:06]} 75. Kb6 {[%clk 0:00:04]}  Rd8 {[%clk 0:00:04]} 76. Rd2 {[%clk 0:00:02]}  Kf6 {[%clk 0:00:04]} 77. Kc7 {[%clk 0:00:02]}  Rd5 {[%clk 0:00:03]} 78. Kc6 {[%clk 0:00:02]}  Rd8 {[%clk 0:00:03]} 79. d5 {[%clk 0:00:03]}  Rc8+ {[%clk 0:00:02]} 80. Kd7 {[%clk 0:00:03]}  Rc1 {[%clk 0:00:02]} 81. d6 {[%clk 0:00:03]}  Ke5 {[%clk 0:00:02]} 82. Ke7 {[%clk 0:00:03]}  Rh1 {[%clk 0:00:02]} 83. d7 {[%clk 0:00:02]}  Rh7+ {[%clk 0:00:03]} 84. Kf8 {[%clk 0:00:03]}  Rh8+ {[%clk 0:00:03]} 85. Kf7 {[%clk 0:00:03]}  Re8 {[%clk 0:00:02]} 86. dxe8=Q+ {[%clk 0:00:03]} 1-0


[Site "https://www.chess.com"]

[Event "Titled Tuesday Blitz March 29 Late 2022"]
[White "Adewumi, Tanitoluwa"]
[Black "Kamsky, Gata"]
[WhiteFideId "30966396"]
[BlackFideId "2000024"]
[WhiteElo "2574"]
[BlackElo "2645"]
[Result "0-1"]
[Round "03"]
[TimeControl "180+1"]
[Date "2022.03.29"]
[WhiteClock "0:00:02"]
[BlackClock "0:00:21"]

1. e4 {[%clk 0:03:00]}  e5 {[%clk 0:02:59]} 2. Nf3 {[%clk 0:02:56]}  Nc6 {[%clk 0:02:58]} 3. Bc4 {[%clk 0:02:56]}  Nf6 {[%clk 0:02:57]} 4. Ng5 {[%clk 0:02:53]}  d5 {[%clk 0:02:49]} 5. exd5 {[%clk 0:02:54]}  Nxd5 {[%clk 0:02:49]} 6. Nxf7 {[%clk 0:02:37]}  Kxf7 {[%clk 0:02:49]} 7. Qf3+ {[%clk 0:02:37]}  Ke6 {[%clk 0:02:50]} 8. Nc3 {[%clk 0:02:37]}  Nb4 {[%clk 0:02:50]} 9. a3 {[%clk 0:02:33]}  Nxc2+ {[%clk 0:02:22]} 10. Kd1 {[%clk 0:02:26]}  Nd4 {[%clk 0:01:28]} 11. Bxd5+ {[%clk 0:01:51]}  Kd6 {[%clk 0:01:27]} 12. Qf7 {[%clk 0:01:10]}  Qe7 {[%clk 0:01:13]} 13. Ne4+ {[%clk 0:00:37]}  Kd7 {[%clk 0:01:11]} 14. Qh5 {[%clk 0:00:32]}  c6 {[%clk 0:01:08]} 15. Bc4 {[%clk 0:00:20]}  g6 {[%clk 0:01:04]} 16. Qh3+ {[%clk 0:00:20]}  Kc7 {[%clk 0:01:04]} 17. Qe3 {[%clk 0:00:21]}  Be6 {[%clk 0:00:56]} 18. Bxe6 {[%clk 0:00:12]}  Qxe6 {[%clk 0:00:56]} 19. f3 {[%clk 0:00:10]}  Rd8 {[%clk 0:00:54]} 20. Re1 {[%clk 0:00:09]}  Bg7 {[%clk 0:00:48]} 21. b4 {[%clk 0:00:08]}  Nf5 {[%clk 0:00:41]} 22. Qc3 {[%clk 0:00:06]}  b6 {[%clk 0:00:37]} 23. Bb2 {[%clk 0:00:05]}  Rd5 {[%clk 0:00:36]} 24. Rc1 {[%clk 0:00:05]}  Rhd8 {[%clk 0:00:35]} 25. Re2 {[%clk 0:00:05]}  Kb7 {[%clk 0:00:35]} 26. a4 {[%clk 0:00:05]}  Rd3 {[%clk 0:00:31]} 27. Qc2 {[%clk 0:00:04]}  h6 {[%clk 0:00:29]} 28. b5 {[%clk 0:00:04]}  c5 {[%clk 0:00:28]} 29. a5 {[%clk 0:00:04]}  Qb3 {[%clk 0:00:28]} 30. a6+ {[%clk 0:00:04]}  Kb8 {[%clk 0:00:26]} 31. Bc3 {[%clk 0:00:02]}  Qxb5 {[%clk 0:00:25]} 32. Ba1 {[%clk 0:00:01]}  Qb3 {[%clk 0:00:25]} 33. Qxb3 {[%clk 0:00:01]}  Rxb3 {[%clk 0:00:25]} 34. Kc2 {[%clk 0:00:02]}  Ra3 {[%clk 0:00:23]} 35. Bb2 {[%clk 0:00:02]}  Rxa6 {[%clk 0:00:23]} 36. Rce1 {[%clk 0:00:03]}  Ra4 {[%clk 0:00:22]} 37. g4 {[%clk 0:00:03]}  Nd4+ {[%clk 0:00:22]} 38. Bxd4 {[%clk 0:00:04]}  exd4 {[%clk 0:00:22]} 39. d3 {[%clk 0:00:03]}  c4 {[%clk 0:00:22]} 40. Nd2 {[%clk 0:00:02]}  cxd3+ {[%clk 0:00:21]} 41. Kxd3 {[%clk 0:00:03]}  Ra3+ {[%clk 0:00:21]} 42. Kc2 {[%clk 0:00:02]}  d3+ {[%clk 0:00:21]} 0-1


[Site "https://www.chess.com"]

[Event "Titled Tuesday Blitz March 29 Late 2022"]
[White "Almagro Mazariegos, Sebastian"]
[Black "Samarth, J Rao"]
[WhiteFideId "2221640"]
[BlackFideId "46652370"]
[WhiteElo "2273"]
[BlackElo "1514"]
[Result "0-1"]
[Round "03"]
[TimeControl "180+1"]
[Date "2022.03.30"]
[WhiteClock "0:00:02"]
[BlackClock "0:00:28"]

1. e4 {[%clk 0:03:00]}  c5 {[%clk 0:02:08]} 2. Nf3 {[%clk 0:02:56]}  d6 {[%clk 0:02:09]} 3. d4 {[%clk 0:02:56]}  cxd4 {[%clk 0:02:09]} 4. Nxd4 {[%clk 0:02:56]}  Nf6 {[%clk 0:02:10]} 5. Nc3 {[%clk 0:02:56]}  a6 {[%clk 0:02:11]} 6. f3 {[%clk 0:02:57]}  e5 {[%clk 0:02:10]} 7. Nb3 {[%clk 0:02:57]}  Be7 {[%clk 0:02:10]} 8. Be3 {[%clk 0:02:57]}  Be6 {[%clk 0:02:09]} 9. Qd2 {[%clk 0:02:58]}  h5 {[%clk 0:02:10]} 10. Nd5 {[%clk 0:02:56]}  Nxd5 {[%clk 0:02:09]} 11. exd5 {[%clk 0:02:57]}  Bf5 {[%clk 0:02:10]} 12. c4 {[%clk 0:02:53]}  Nd7 {[%clk 0:02:10]} 13. Be2 {[%clk 0:02:52]}  b6 {[%clk 0:02:10]} 14. O-O {[%clk 0:02:51]}  a5 {[%clk 0:02:10]} 15. Rac1 {[%clk 0:02:50]}  Nc5 {[%clk 0:02:03]} 16. Na1 {[%clk 0:02:46]}  Na6 {[%clk 0:01:59]} 17. b3 {[%clk 0:02:37]}  g5 {[%clk 0:01:54]} 18. a3 {[%clk 0:02:36]}  f6 {[%clk 0:01:54]} 19. b4 {[%clk 0:02:32]}  h4 {[%clk 0:01:50]} 20. h3 {[%clk 0:02:25]}  Bd7 {[%clk 0:01:43]} 21. Nb3 {[%clk 0:02:00]}  a4 {[%clk 0:01:42]} 22. Na1 {[%clk 0:01:57]}  Kf7 {[%clk 0:01:35]} 23. Nc2 {[%clk 0:01:28]}  Kg7 {[%clk 0:01:33]} 24. Ne1 {[%clk 0:01:23]}  Qc7 {[%clk 0:01:14]} 25. Nd3 {[%clk 0:01:17]}  Rhc8 {[%clk 0:01:13]} 26. Nb2 {[%clk 0:01:11]}  Qb7 {[%clk 0:01:10]} 27. Bd3 {[%clk 0:00:42]}  Nc7 {[%clk 0:01:00]} 28. Be4 {[%clk 0:00:32]}  Ne8 {[%clk 0:00:48]} 29. c5 {[%clk 0:00:25]}  bxc5 {[%clk 0:00:46]} 30. bxc5 {[%clk 0:00:24]}  Bb5 {[%clk 0:00:45]} 31. c6 {[%clk 0:00:22]}  Qa6 {[%clk 0:00:45]} 32. Rfd1 {[%clk 0:00:17]}  Nc7 {[%clk 0:00:44]} 33. Bb1 {[%clk 0:00:13]}  Rh8 {[%clk 0:00:43]} 34. Qc2 {[%clk 0:00:13]}  Rag8 {[%clk 0:00:38]} 35. Qf5 {[%clk 0:00:11]}  Qc8 {[%clk 0:00:38]} 36. Qc2 {[%clk 0:00:06]}  Kf7 {[%clk 0:00:36]} 37. Nxa4 {[%clk 0:00:05]}  Qa6 {[%clk 0:00:36]} 38. Nc3 {[%clk 0:00:05]}  Bc4 {[%clk 0:00:31]} 39. a4 {[%clk 0:00:02]}  Rh6 {[%clk 0:00:28]} 0-1


[Site "https://www.chess.com"]